Cogmind - Beta 12 @@@ ROGUE MODE // 2023.05.08 @ 09:37:13 Player: Inkie Result: Destroyed by Y-54 Guardian with Gatling Laser Performance ------------- Evolutions (3) 1500 Regions Visited (14) 2800 Robots Destroyed (101) 505 Value Destroyed (3485) 3485 Prototype IDs (3) 60 Alien Tech Used (0) 0 Bonus (1890) 1890 TOTAL SCORE: 10240 Bonus ------- High Alert Combat Kills 10 Follower Combat Kills 309 Entered Garrisons 600 Used RIF Installer 1000 Friendly Fire -29 Cogmind --------- Core Integrity 0/700 Matter 256/300 Energy 268/325 System Corruption 11% Temperature Cool (12) Movement Core (2600) Ox51 Location -7/Garrison Parts ------- > --- POWER (1) -------- Antimatter Reactor > --- PROPULSION (2) --- (None) > --- UTILITY (8) ------ Cargo Storage Unit Hacking Suite > --- WEAPON (2) ------- (None) > --- INVENTORY (30) --- Improved Heavy Treads Improved Heavy Treads Compact Wheel Compact Wheel Compact Wheel Damper Plating Remote Force Field Hacking Suite Relay Coupler [Sentry] (20) Relay Coupler [Hunter] (17) Thief Drone Bay (3/3) Improved Spread Laser Improved Spread Laser Improved Spread Laser Mass Driver Grenade Launcher Datajack Peak State ------------ > --- POWER ------------ Antimatter Reactor > --- PROPULSION ------- Improved Heavy Treads > --- UTILITY ---------- Improved Cooling System Cargo Storage Unit Damper Plating Hacking Suite > --- WEAPON ----------- Cooled Pulse Rifle Cooled Pulse Rifle > --- INVENTORY -------- Antimatter Reactor Improved Heavy Treads Improved Heavy Treads Improved Heavy Treads Compact Wheel Compact Wheel Compact Wheel Improved Heat Sink Remote Force Field Hacking Suite Relay Coupler [Sentry] Relay Coupler [Hunter] Thief Drone Bay Improved Spread Laser Improved Spread Laser Improved Spread Laser Mass Driver Grenade Launcher Datajack [Rating: 74] Favorites ----------- Power Antimatter Reactor Engine Deuterium Engine Power Core Light Nuclear Core Reactor Antimatter Reactor Propulsion Light Treads Treads Light Treads Wheel Compact Wheel Utility Hacking Suite Device Heat Sink Storage Large Storage Unit Hackware Hacking Suite Protection Improved Utility Shielding Weapon Improved Light Cannon Energy Gun Wave Gun Energy Cannon Particle Cannon Ballistic Gun Assault Rifle Ballistic Cannon Improved Light Cannon Launcher Grenade Launcher Special Melee Weapon Datajack Build | -11 -10 -10 -9 -9 -9 -8 -8 -8 -7 -7 -7 -7 -7 -7 ------- Run | Jun Mat Min Mat Min Exi Min Mat Gar Fac Was Fac Gar Fac Gar Slots Evolved 6 | . . . 2 . . . 2 . 2 . . . . . Power . | . . . . . . . . . . . . . . . Propulsion . | . . . . . . . . . . . . . . . Utility 6 | . . . 2 . . . 2 . 2 . . . . . Weapon . | . . . . . . . . . . . . . . . Parts Attached 85 | 6 8 2 10 2 . 3 4 8 2 6 3 6 15 10 Power 6 | 1 . . 1 . . 1 . . . 1 . . . 2 Engine 2 | 1 . . 1 . . . . . . . . . . . Core 1 | . . . . . . 1 . . . . . . . . Reactor 3 | . . . . . . . . . . 1 . . . 2 Propulsion 15 | 2 . . 2 . . . . 2 . . . 1 6 2 Treads 10 | 2 . . 2 . . . . 2 . . . 1 1 2 Leg . | . . . . . . . . . . . . . . . Wheel 5 | . . . . . . . . . . . . . 5 . Hover . | . . . . . . . . . . . . . . . Flight . | . . . . . . . . . . . . . . . Utility 29 | 1 3 2 . . . 1 3 3 2 4 2 2 2 4 Device 14 | . 2 2 . . . 1 . 1 1 1 1 1 1 3 Storage 4 | 1 1 . . . . . . . . 1 . 1 . . Processor . | . . . . . . . . . . . . . . . Hackware 4 | . . . . . . . 2 . . 1 1 . . . Protection 7 | . . . . . . . 1 2 1 1 . . 1 1 Artifact . | . . . . . . . . . . . . . . . Weapon 35 | 2 5 . 7 2 . 1 1 3 . 1 1 3 7 2 Energy Gun 6 | 1 2 . . . . . . 1 . . . . . 2 Energy Cannon 5 | . . . 2 . . 1 . . . . . . 2 . Ballistic Gun 6 | 1 1 . . . . . . 1 . . . 2 1 . Ballistic Cannon 6 | . . . 2 . . . 1 1 . . . . 2 . Launcher 10 | . 2 . 3 2 . . . . . . 1 1 1 . Special Weapon . | . . . . . . . . . . . . . . . Impact Weapon . | . . . . . . . . . . . . . . . Slashing Weapon . | . . . . . . . . . . . . . . . Piercing Weapon . | . . . . . . . . . . . . . . . Special Melee Weapon 2 | . . . . . . . . . . 1 . . 1 . Unidentified Prototypes 1 | . . 1 . . . . . . . . . . . . Parts Lost 22 | . 1 . 3 1 . 1 . . . 2 . . 2 12 Power 3 | . . . 1 . . . . . . . . . . 2 Propulsion 4 | . . . . . . . . . . . . . 2 2 Utility 8 | . . . . . . 1 . . . 2 . . . 5 Weapon 7 | . 1 . 2 1 . . . . . . . . . 3 Highest Loss Streak 10 | . 1 . 2 1 . 1 . . . 1 . . 1 10 To Critical Strikes . | . . . . . . . . . . . . . . . Average Slot Usage (%) 85 | . 95 100 72 77 77 76 86 89 89 85 91 85 88 80 Engine 6 | . 14 14 8 11 11 8 . . . . . . . . Core 1 | . . . . . . 2 9 9 7 4 . . . . Reactor 2 | . . . . . . . . . . 3 7 7 7 6 Treads 16 | . 28 28 21 22 22 22 18 12 7 7 7 7 2 1 Wheel 1 | . . . . . . . . . . . . . 8 11 Device 10 | . 9 14 11 11 11 10 9 14 20 14 15 8 7 8 Storage 10 | . 14 14 11 11 11 11 9 9 7 6 7 7 7 7 Hackware 11 | . . . . . . . 15 18 15 21 29 30 30 23 Protection 3 | . . . . . . . 7 9 15 10 7 7 7 4 Energy Gun 4 | . 12 14 1 . . . . 4 7 7 7 7 . 2 Energy Cannon 3 | . . . 7 4 . 9 9 4 . . . . 5 5 Ballistic Gun 3 | . 12 14 2 . . . . . . . . 6 1 . Ballistic Cannon 5 | . . . 5 11 11 11 9 9 7 1 . . 3 5 Launcher 2 | . 1 . 4 6 11 1 . . . . 6 . . . Naked Turns . | . . . . . . . . . . . . . . . Heaviest Build 187 | 12 29 27 38 38 37 38 49 49 53 53 51 187 180 179 Greatest Support 75 | 40 40 40 40 40 40 40 40 70 70 70 70 75 75 75 Greatest Overweight (x) 17 | . . . . . . . 1 1 . . . 2 17 5 Average Overweight (x) . | . . . . . . . . . . . . 1 6 4 Largest Inventory Capacity 30 | 8 15 15 15 15 15 15 15 15 15 15 15 30 30 30 Average Capacity 18 | 6 14 15 15 15 15 15 15 15 15 14 15 27 30 30 Most Carried 30 | . 10 11 15 15 14 15 15 15 14 14 15 26 30 30 Average Carried 15 | . 7 10 12 14 14 14 14 14 13 12 14 22 27 28 Final Capacity 30 | 8 15 15 15 15 15 15 15 15 15 15 15 30 30 30 Final Carried 30 | . 10 11 15 14 14 15 15 14 14 14 15 26 30 22 Class Distribution -------------------- 57% | Mutant 37% | Hacker-Mutant 4% | Scavenger-Mutant Dominant Class ---------------- Mutant | -10/Materials Mutant | -10/Mines Mutant | -9/Materials Mutant | -9/Mines Mutant | -9/Exiles Mutant | -8/Mines Hacker-Mutant | -8/Materials Hacker-Mutant | -8/Garrison Hacker-Mutant | -7/Factory Hacker-Mutant | -7/Waste Hacker-Mutant | -7/Factory Hacker-Mutant | -7/Garrison Hacker-Mutant | -7/Factory Hacker-Mutant | -7/Garrison Resources | -11 -10 -10 -9 -9 -9 -8 -8 -8 -7 -7 -7 -7 -7 -7 ----------- Run | Jun Mat Min Mat Min Exi Min Mat Gar Fac Was Fac Gar Fac Gar Matter Collected 2261 | 205 304 102 187 279 . 89 . . . . 108 350 485 152 Remotely . | . . . . . . . . . . . . . . . Salvage Created 3469 | . 375 11 350 158 . 354 16 . . . 120 773 943 369 Parts 180 | . 39 . 29 19 . 12 2 . . . 3 23 39 14 Haulers Intercepted . | . . . . . . . . . . . . . . . Recyclers Shooed 3 | . . . 1 . . . . . . . . . 2 . Parts Field Recycled . | . . . . . . . . . . . . . . . Retrieved Matter . | . . . . . . . . . . . . . . . Parts Self-Destructed . | . . . . . . . . . . . . . . . Prevented . | . . . . . . . . . . . . . . . Kills | -11 -10 -10 -9 -9 -9 -8 -8 -8 -7 -7 -7 -7 -7 -7 ------- Run | Jun Mat Min Mat Min Exi Min Mat Gar Fac Was Fac Gar Fac Gar Combat Hostiles Destroyed 80 | . 15 1 13 12 . 8 . . . . 3 9 11 8 Guns 20 | . 9 1 . . . . . . . . 2 4 1 3 Cannons 26 | . . . 4 2 . 8 . . . . . . 7 5 AOE 34 | . 6 . 9 10 . . . . . . 1 5 3 . Classes Destroyed 10 | . 5 1 2 . . . . . . . . . 2 . Worker 1 | . . . . . . . . . . . . . 1 . Builder 6 | . 1 . 2 . . . . . . . . . 3 . Recycler 9 | . . . 1 . . 1 . . . . 1 . 6 . Operator 4 | . 2 . 1 . . . 1 . . . . . . . Watcher 1 | . 1 . . . . . . . . . . . . . Swarmer 20 | . 9 . . 9 . 2 . . . . . . . . Grunt 52 | . 6 . 12 3 . 6 . . . . 3 9 8 5 Sentry 1 | . . . 1 . . . . . . . . . . . Demolisher 1 | . . 1 . . . . . . . . . . . . Hunter 6 | . . . . . . . . . . . . . 3 3 Best Kill Streak 13 | . 4 1 13 3 . 3 1 . . . 4 3 7 5 Combat Bots Only 10 | . 3 1 10 3 . 3 . . . . 3 3 3 5 Max Kills in Single Turn 4 | . 4 1 2 3 . 2 1 . . . 1 2 1 1 Gunslinging . | . . . . . . . . . . . . . . . Exploded 3 | . 3 . 2 3 . . . . . . 1 2 1 . Melee . | . . . . . . . . . . . . . . . Uniques/NPCs Destroyed . | . . . . . . . . . . . . . . . Combat | -11 -10 -10 -9 -9 -9 -8 -8 -8 -7 -7 -7 -7 -7 -7 -------- Run | Jun Mat Min Mat Min Exi Min Mat Gar Fac Was Fac Gar Fac Gar Damage Taken 5970 | . 309 202 318 146 . 205 . . . 68 191 194 717 3620 Core 919 | . 26 76 68 22 . 19 . . . 30 4 74 67 533 Absorbed by Shields 225 | . . . . . . . . . . . . 89 60 76 Reduced by Siege Mode 223 | . . . . . . . . . . . . . . 223 Redirected to Shielding 107 | . . . . . . . . . . . 37 . 48 22 Regen/Repaired (Parts) 214 | . . . 214 . . . . . . . . . . . Core Remaining (%) 82 | 100 . 59 . . . 72 . 100 . . . . . . Volleys Fired 292 | . 25 1 31 9 . 16 3 3 . 28 12 72 59 33 Largest 2 | . 2 2 2 2 . 2 1 1 . 1 1 2 2 2 Hottest 138 | . 60 60 107 107 . 107 68 81 . 81 81 111 138 138 Shots Fired 387 | . 40 2 42 11 . 32 3 3 . 28 12 89 80 45 Gun 192 | . 36 2 4 . . . . 2 . 28 6 78 15 21 Cannon 143 | . . . 18 4 . 32 3 1 . . . . 61 24 Launcher 52 | . 4 . 20 7 . . . . . . 6 11 4 . Special . | . . . . . . . . . . . . . . . Kinetic 115 | . 21 1 11 2 . 16 1 . . . . 15 40 8 Thermal 165 | . 12 1 11 2 . 16 2 3 . 28 6 63 . 21 Explosive 52 | . 4 . 20 7 . . . . . . 6 11 4 . Electromagnetic 55 | . 3 . . . . . . . . . . . 36 16 Robot Hit Streak 43 | . 12 3 14 4 . 6 4 . . 11 10 43 7 6 Robot Miss Streak 5 | . 3 . 1 1 . 2 . . . 2 2 4 5 2 Penetration Max . | . . . . . . . . . . . . . . . Secondary Targets 3 | . 1 . . . . . . . . . . . . 2 Max Gunslinging Chain 1 | . 1 . . . . . . . . . . . . 1 Shots Hit Robots 260 | . 27 2 20 2 . 20 2 . . 28 10 69 53 27 Core Hits 208 | . 25 2 30 16 . 15 1 . . 4 9 53 40 13 Critical Kills . | . . . . . . . . . . . . . . . Critical Parts Destroyed . | . . . . . . . . . . . . . . . Critical Strikes 8 | . . . 1 . . 2 . . . 1 1 1 2 . Burn 3 | . . . . . . . . . . 1 1 1 . . Blast 4 | . . . 1 . . 2 . . . . . . 1 . Corrupt 1 | . . . . . . . . . . . . . 1 . Melee Attacks 13 | . . . . . . . . . . 7 . . 6 . Impact . | . . . . . . . . . . . . . . . Slashing . | . . . . . . . . . . . . . . . Piercing . | . . . . . . . . . . . . . . . Sneak Attacks 6 | . . . . . . . . . . . . . 6 . Combat Hostiles . | . . . . . . . . . . . . . . . Follow-up Attacks . | . . . . . . . . . . . . . . . Damage Inflicted 8825 | . 786 22 1327 646 . 431 41 . . 626 519 2008 1723 696 Guns 3085 | . 333 22 22 . . . . . . 626 143 1432 172 335 Cannons 2429 | . . . 291 59 . 431 41 . . . . . 1283 324 Explosions 3305 | . 447 . 1014 587 . . . . . . 376 576 268 37 Melee . | . . . . . . . . . . . . . . . Ramming 6 | . 6 . . . . . . . . . . . . . Kinetic 1572 | . 205 11 161 38 . 227 . . . . . 212 613 105 Thermal 2919 | . 129 11 152 21 . 204 41 . . 626 143 1220 . 372 Explosive 3229 | . 408 . 1014 587 . . . . . . 376 576 268 . Electromagnetic 1099 | . 38 . . . . . . . . . . . 842 219 Impact . | . . . . . . . . . . . . . . . Slashing . | . . . . . . . . . . . . . . . Piercing . | . . . . . . . . . . . . . . . Highest Corruption 11 | . . . . . . . . . . 11 11 11 11 11 Average Corruption 10 | . . . . . . . . . . 8 11 11 11 11 Corruption Purged . | . . . . . . . . . . . . . . . Corruption Blocked . | . . . . . . . . . . . . . . . Effects 92 | . . . . . . . . . . 7 8 27 36 14 Message Errors 18 | . . . . . . . . . . . 1 7 7 3 Matter Fused 9 | . . . . . . . . . . 1 . 3 4 1 Heat Flow Errors 13 | . . . . . . . . . . . 1 3 5 4 Energy Discharges 13 | . . . . . . . . . . . 2 5 4 2 Parts Rejected 2 | . . . . . . . . . . . . . 2 . Parts Fused 2 | . . . . . . . . . . . . 1 1 . Data Loss (minor) 19 | . . . . . . . . . . 3 3 6 4 3 Data Loss (major) 8 | . . . . . . . . . . 1 1 1 5 . Misfires 4 | . . . . . . . . . . 1 . 1 2 . Weapon Failures 4 | . . . . . . . . . . 1 . . 2 1 Overload Shots . | . . . . . . . . . . . . . . . Overflow Damage 84 | . 14 . 5 39 . . . . . . 4 . 22 . Projectiles 22 | . . . . . . . . . . . . . 22 . Explosions 62 | . 14 . 5 39 . . . . . . 4 . . . Melee . | . . . . . . . . . . . . . . . Knockbacks 11 | . . . . . . 5 . . . . . . 3 3 Impact . | . . . . . . . . . . . . . . . Kinetic 9 | . . . . . . 3 . . . . . . 3 3 Secondary 2 | . . . . . . 2 . . . . . . . . Self-Inflicted Damage 163 | . 82 . . 51 . . . . . . 30 . . . Shots 7 | . 3 . . 2 . . . . . . 2 . . . Rammed 2 | . 2 . . . . . . . . . . . . . Targets Rammed 2 | . 2 . . . . . . . . . . . . . Kicked . | . . . . . . . . . . . . . . . Crushed . | . . . . . . . . . . . . . . . Highest Temperature 455 | . 24 . 42 18 . 256 8 17 . 207 182 350 204 455 Average Temperature 72 | . 12 . 15 10 . 69 5 9 . 70 55 96 50 76 Received Heat Transfer 2112 | . 48 . 192 6 . 99 . . . . 99 116 145 1407 Effects 1 | . . . . . . 1 . . . . . . . . Interference 1 | . . . . . . 1 . . . . . . . . Siege Activations 2 | . . . . . . . . . . . . . . 2 Total Turns 34 | . . . . . . . . . . . . . . 34 Longest Duration 30 | . . . . . . . . . . . . . . 30 Robots Corrupted . | . . . . . . . . . . . . . . . Combat Hostiles . | . . . . . . . . . . . . . . . Parts Fried 5 | . . . . . . . . . . . . . 4 1 Impact Corruptions . | . . . . . . . . . . . . . . . Robots Melted . | . . . . . . . . . . . . . . . Combat Hostiles . | . . . . . . . . . . . . . . . Parts Melted 4 | . . . . . . . 1 . . . 1 1 . 1 Heat Transferred 5049 | . 250 25 284 37 . 370 74 . . 1036 296 1961 . 716 Parts Sabotaged . | . . . . . . . . . . . . . . . Parts Stolen . | . . . . . . . . . . . . . . . Parts Stripped . | . . . . . . . . . . . . . . . Power Chain Reactions 2 | . 1 . . . . . . . . . . . . 1 Missiles Intercepted . | . . . . . . . . . . . . . . . Alert | -11 -10 -10 -9 -9 -9 -8 -8 -8 -7 -7 -7 -7 -7 -7 ------- Run | Jun Mat Min Mat Min Exi Min Mat Gar Fac Was Fac Gar Fac Gar Peak Influence 430 | . 186 58 400 430 . 130 36 243 127 59 116 376 404 325 Initial 197 | . . 28 22 83 . . . 19 127 44 . 81 197 168 Average 158 | . 69 48 177 240 . 67 21 165 127 12 94 232 315 211 Maximum Alert Level 2 | . . . 2 2 . . . 1 . . . 1 2 1 Low Security (%) 68 | 100 100 100 55 39 . 100 100 78 100 100 100 46 9 59 Level 1 26 | . . . 25 44 . . . 21 . . . 53 74 40 Level 2 5 | . . . 18 16 . . . . . . . . 16 . Level 3 . | . . . . . . . . . . . . . . . Level 4 . | . . . . . . . . . . . . . . . Level 5 . | . . . . . . . . . . . . . . . High Security . | . . . . . . . . . . . . . . . Max Security . | . . . . . . . . . . . . . . . Squads Dispatched 15 | . 2 . 3 . . . 2 . . . 2 . 6 . Investigation 6 | . . . 1 . . . 2 . . . 1 . 2 . Extermination 1 | . . . . . . . . . . . . . 1 . Reinforcement 7 | . 2 . 2 . . . . . . . 1 . 2 . Assault . | . . . . . . . . . . . . . . . Garrison 1 | . . . . . . . . . . . . . 1 . Intercept . | . . . . . . . . . . . . . . . Searches Triggered . | . . . . . . . . . . . . . . . Construction Impeded 3 | . . . 1 . . . . . . . . . 2 . Haulers Reinforced . | . . . . . . . . . . . . . . . Active Scanning Responses . | . . . . . . . . . . . . . . . Cargo Convoy Interrupts . | . . . . . . . . . . . . . . . Stealth | -11 -10 -10 -9 -9 -9 -8 -8 -8 -7 -7 -7 -7 -7 -7 --------- Run | Jun Mat Min Mat Min Exi Min Mat Gar Fac Was Fac Gar Fac Gar Distress Signals 3 | . 2 . . . . . . . . . . . 1 . Communications Jammed . | . . . . . . . . . . . . . . . Distress Signals . | . . . . . . . . . . . . . . . Times Spotted 127 | . 25 7 17 16 . 12 1 . . 6 3 9 16 15 Peak Tracking Total 10 | . 4 4 4 6 . 3 1 . . 4 3 3 3 10 Tactical Retreats 3 | . . . . . . 3 . . . . . . . . Traps | -11 -10 -10 -9 -9 -9 -8 -8 -8 -7 -7 -7 -7 -7 -7 ------- Run | Jun Mat Min Mat Min Exi Min Mat Gar Fac Was Fac Gar Fac Gar Traps Triggered 6 | . 1 . . . . . . . 1 . . 2 2 . Indirectly . | . . . . . . . . . . . . . . . Trap Hack Attempts . | . . . . . . . . . . . . . . . Triggered . | . . . . . . . . . . . . . . . Disarmed . | . . . . . . . . . . . . . . . Reprogrammed . | . . . . . . . . . . . . . . . Reused . | . . . . . . . . . . . . . . . Traps Extracted . | . . . . . . . . . . . . . . . Installed . | . . . . . . . . . . . . . . . Triggered . | . . . . . . . . . . . . . . . Machines | -11 -10 -10 -9 -9 -9 -8 -8 -8 -7 -7 -7 -7 -7 -7 ---------- Run | Jun Mat Min Mat Min Exi Min Mat Gar Fac Was Fac Gar Fac Gar Machines Disabled 9 | . . . 1 1 . . 1 1 . . 1 1 3 . Max in Single Turn 1 | . . . 1 1 . . 1 1 . . 1 1 1 . Garrison Relay 2 | . . . . . . . . 1 . . . 1 . . Machines Repaired . | . . . . . . . . . . . . . . . Machines Sabotaged . | . . . . . . . . . . . . . . . Overloaded Fab Kills . | . . . . . . . . . . . . . . . Hacking | -11 -10 -10 -9 -9 -9 -8 -8 -8 -7 -7 -7 -7 -7 -7 --------- Run | Jun Mat Min Mat Min Exi Min Mat Gar Fac Was Fac Gar Fac Gar Machines Accessed 24 | . 6 1 5 . 1 . 4 1 . . 3 1 1 1 Terminals 16 | . 6 . 3 . . . 2 1 . . 2 1 . 1 Fabricators . | . . . . . . . . . . . . . . . Repair Stations 2 | . . . 2 . . . . . . . . . . . Recycling Units 1 | . . . . . . . 1 . . . . . . . Scanalyzers . | . . . . . . . . . . . . . . . Garrison Access 3 | . . . . . . . 1 . . . 1 . 1 . Total Hacks 68 | . 18 1 11 . 1 . 10 2 . . 15 5 3 2 Successful 29 | . 3 1 4 . 1 . 7 1 . . 7 2 2 1 Failed 39 | . 15 . 7 . . . 3 1 . . 8 3 1 1 Catastrophic 5 | . 3 . . . . . . . . . 1 1 . . Database Lockouts . | . . . . . . . . . . . . . . . Manual 57 | . 18 . 5 . . . 9 2 . . 14 5 2 2 Terminals 53 | . 18 . 7 . . . 6 2 . . 13 5 . 2 Fabricators . | . . . . . . . . . . . . . . . Repair Stations 4 | . . . 4 . . . . . . . . . . . Recycling Units 1 | . . . . . . . 1 . . . . . . . Scanalyzers . | . . . . . . . . . . . . . . . Garrison Access 8 | . . . . . . . 3 . . . 2 . 3 . Terminal Hacks 11 | . 1 1 . . 1 . 3 1 . . 2 1 . 1 Record 1 | . . . . . 1 . . . . . . . . . Robot Schematic 1 | . . . . . . . 1 . . . . . . . Open Door 1 | . . 1 . . . . . . . . . . . . Terminal Index 2 | . 1 . . . . . . . . . 1 . . . Fabricator Index 1 | . . . . . . . . . . . 1 . . . Garrison Index 1 | . . . . . . . 1 . . . . . . . Unreport Threat 1 | . . . . . . . 1 . . . . . . . Garrison Registry 3 | . . . . . . . . 1 . . . 1 . 1 Fabricator Hacks . | . . . . . . . . . . . . . . . Repair Station Hacks 4 | . . . 4 . . . . . . . . . . . Scan Component 2 | . . . 2 . . . . . . . . . . . Repair 2 | . . . 2 . . . . . . . . . . . Recycling Unit Hacks . | . . . . . . . . . . . . . . . Scanalyzer . | . . . . . . . . . . . . . . . Garrison Access Hacks 3 | . . . . . . . 1 . . . 1 . 1 . Unlock Access 3 | . . . . . . . 1 . . . 1 . 1 . Unauthorized Hacks 11 | . 2 . . . . . 3 . . . 4 1 1 . Terminals 7 | . 2 . . . . . 1 . . . 3 1 . . Track 1 | . . . . . . . . . . . 1 . . . Botnet 4 | . 1 . . . . . 1 . . . 1 1 . . Operators 2 | . 1 . . . . . . . . . 1 . . . Fabricators . | . . . . . . . . . . . . . . . Repair Stations . | . . . . . . . . . . . . . . . Recycling Units 1 | . . . . . . . 1 . . . . . . . Tunnel 1 | . . . . . . . 1 . . . . . . . Scanalyzers . | . . . . . . . . . . . . . . . Garrison Access 3 | . . . . . . . 1 . . . 1 . 1 . Reprogram 3 | . . . . . . . 1 . . . 1 . 1 . Data Cores Recovered 1 | . . . 1 . . . . . . . . . . . Used 1 | . . . 1 . . . . . . . . . . . Hacking Detections 19 | . 6 . 4 . . . 3 1 . . 2 1 1 1 Full Trace Events 2 | . . . 1 . . . . . . . 1 . . . Feedback Events . | . . . . . . . . . . . . . . . Feedback Blocked . | . . . . . . . . . . . . . . . Robot Schematics Acquired 1 | . . . . . . . 1 . . . . . . . Robots Built . | . . . . . . . . . . . . . . . Authchips . | . . . . . . . . . . . . . . . Time . | . . . . . . . . . . . . . . . Total Robot Build Rating . | . . . . . . . . . . . . . . . Part Schematics Acquired . | . . . . . . . . . . . . . . . Parts Built . | . . . . . . . . . . . . . . . Authchips . | . . . . . . . . . . . . . . . Time . | . . . . . . . . . . . . . . . Total Part Build Rating . | . . . . . . . . . . . . . . . Parts Repaired 2 | . . . 2 . . . . . . . . . . . Time 52 | . . . 52 . . . . . . . . . . . Parts Recycled . | . . . . . . . . . . . . . . . Recycled Matter . | . . . . . . . . . . . . . . . Retrieved Matter . | . . . . . . . . . . . . . . . Retrieved Components . | . . . . . . . . . . . . . . . Parts Scanalyzed . | . . . . . . . . . . . . . . . Part Schematics Acquired . | . . . . . . . . . . . . . . . Parts Damaged . | . . . . . . . . . . . . . . . Bothacking | -11 -10 -10 -9 -9 -9 -8 -8 -8 -7 -7 -7 -7 -7 -7 ------------ Run | Jun Mat Min Mat Min Exi Min Mat Gar Fac Was Fac Gar Fac Gar Used RIF Installer 2 | . . . . . . . . 1 . . . 1 . . Watcher Feeds 1 | . . . . . . . . . . . . 1 . . Robots Hacked 9 | . . . . . . . . . . 6 . . 3 . Non-combat 3 | . . . . . . . . . . . . . 3 . Combat 6 | . . . . . . . . . . 6 . . . . Robot Hacks Applied 9 | . . . . . . . . . . 6 . . 3 . map_walls 1 | . . . . . . . . . . . . . 1 . drop_inventory 2 | . . . . . . . . . . . . . 2 . ignore_targets 6 | . . . . . . . . . . 6 . . . . Relay Couplers Released 8 | . . . . . . . . 4 . . . 4 . . Machine Destruction 8 | . . . . . . . . 4 . . . 4 . . Attached 1 | . . . . . . . . . . 1 . . . . Fabnet Peak Effective % . | . . . . . . . . . . . . . . . Robots Rewired . | . . . . . . . . . . . . . . . Allies Hacked . | . . . . . . . . . . . . . . . Hacks Repelled . | . . . . . . . . . . . . . . . Allies | -11 -10 -10 -9 -9 -9 -8 -8 -8 -7 -7 -7 -7 -7 -7 -------- Run | Jun Mat Min Mat Min Exi Min Mat Gar Fac Was Fac Gar Fac Gar Total Allies 12 | . . . . 5 . . 3 . . . . . 4 . Largest Group 5 | . . . . 5 4 3 3 3 3 3 . . 4 1 Highest-Rated Group 109 | . . . . 75 68 37 48 48 48 48 . . 109 16 Highest-Rated Ally 31 | . . . . 31 31 16 16 16 16 16 . . 31 16 Total Orders 3 | . . . . . . . . . . 3 . . . . RETURN 3 | . . . . . . . . . . 3 . . . . Ally Attacks 168 | . . . . 30 . 13 . 14 . 109 . . 2 . Total Damage 1782 | . . . . 315 . 133 . 177 . 1131 . . 26 . Kills 11 | . . . . 6 . 1 . 2 . 2 . . . . Allies Corrupted . | . . . . . . . . . . . . . . . Allies Melted . | . . . . . . . . . . . . . . . Intel | -11 -10 -10 -9 -9 -9 -8 -8 -8 -7 -7 -7 -7 -7 -7 ------- Run | Jun Mat Min Mat Min Exi Min Mat Gar Fac Was Fac Gar Fac Gar Robot Analysis Total . | . . . . . . . . . . . . . . . Derelict Logs Recovered 2 | . . 1 . 1 . . . . . . . . . . Drone Launches 6 | . . . . . . . . . . 6 . . . . Drone Recoveries 6 | . . . . . . . . . . 6 . . . . Exploration | -11 -10 -10 -9 -9 -9 -8 -8 -8 -7 -7 -7 -7 -7 -7 ------------- Run | Jun Mat Min Mat Min Exi Min Mat Gar Fac Was Fac Gar Fac Gar Turns Passed 6733 | 76 1236 153 458 840 240 820 162 476 86 211 174 691 872 238 Spaces Moved 3192 | 46 694 89 197 497 150 453 66 265 52 76 89 173 272 73 Core 5 | 5 . . . . . . . . . . . . . . Treads 2898 | 41 694 89 197 497 150 453 66 265 52 76 89 173 54 2 Legs . | . . . . . . . . . . . . . . . Wheels 289 | . . . . . . . . . . . . . 218 71 Hover . | . . . . . . . . . . . . . . . Flight . | . . . . . . . . . . . . . . . Fastest Speed 50 | 50 160 160 160 160 160 160 160 160 160 160 160 160 175 175 Average Speed 174 | 148 160 160 160 160 160 160 229 166 160 160 160 287 225 178 Slowest Speed 335 | 160 160 160 160 160 160 160 240 240 160 160 160 320 335 320 Overloaded Moves . | . . . . . . . . . . . . . . . Propulsion Burnouts . | . . . . . . . . . . . . . . . Robots Hopped . | . . . . . . . . . . . . . . . Cave-ins Triggered . | . . . . . . . . . . . . . . . Exploration Rate (%) 41 | 4 91 30 27 96 54 96 9 60 3 88 3 27 14 17 Regions Visited 14 Branch Regions 4 Pre-discovered Areas 3 | . . . . 1 1 . 1 . . . . . . . Known Exits Taken 4 | . . . . . . 1 1 . . . 1 . 1 . Unknown Exits Taken 6 | 1 1 1 1 1 1 . . . . . . . . . Scrap Searched 2 | . . . . 1 . 1 . . . . . . . . Spaces Dug 28 | . 7 . . 18 . . . . . . . . 3 . Terrain Destroyed 167 | . 23 . 39 48 . . . . . . 18 4 28 7 Melee . | . . . . . . . . . . . . . . . Projectile 14 | . . . 1 . . . . . . . . . 13 . AOE 153 | . 23 . 38 48 . . . . . . 18 4 15 7 Terrain Rammed . | . . . . . . . . . . . . . . . Walls Destroyed . | . . . . . . . . . . . . . . . Machines Disabled . | . . . . . . . . . . . . . . . Actions | -11 -10 -10 -9 -9 -9 -8 -8 -8 -7 -7 -7 -7 -7 -7 --------- Run | Jun Mat Min Mat Min Exi Min Mat Gar Fac Was Fac Gar Fac Gar Total 3968 | 51 775 97 294 533 150 515 75 304 55 137 109 292 445 136 Wait 298 | . 37 5 51 22 1 44 . 1 . 19 3 26 73 16 Move 3179 | 45 693 88 196 496 149 452 65 264 52 75 88 172 271 73 Hop . | . . . . . . . . . . . . . . . Pick Up 55 | . 9 1 6 2 . . 2 9 1 2 2 8 13 . Fast Attach 27 | 6 3 . 3 . . 1 1 5 1 3 . 2 2 . Attach 22 | . . . 2 1 . . 2 2 1 . 1 1 5 7 Detach 3 | . . . . . . . . . . . . . . 3 Swap 36 | . 5 2 5 1 . 2 1 1 . 3 2 3 8 3 Drop 32 | . 1 . . 2 . . 1 16 . . 1 4 6 1 Fire 292 | . 25 1 31 9 . 16 3 3 . 28 12 72 59 33 Melee 13 | . . . . . . . . . . 7 . . 6 . Ram . | . . . . . . . . . . . . . . . Kick . | . . . . . . . . . . . . . . . Crush 2 | . 2 . . . . . . . . . . . . . Escape Stasis 6 | . . . . . . . . . . . . 4 2 . Rewire 3 | . . . . . . . . 3 . . . . . . Trap . | . . . . . . . . . . . . . . . Miscellaneous . | . . . . . . . . . . . . . . . Route ------- -11/Junkyard -10/Materials (discovered 3 exits: *Mat x2 / *Min) -10/Mines -9/Materials (discovered 3 exits: *Mat x2 / [*Min]) -9/Mines (discovered 4 exits: *Mat x2 / *Exi / [*Zio]) -9/Exiles -8/Mines (discovered 2 exits: *Mat x2) -8/Materials (discovered 2 exits: Fac / Gar) -8/Garrison (discovered 3 exits: *Fac x3) -7/Factory -7/Waste -7/Factory (discovered 2 exits: [*Sto] / Gar) -7/Garrison (discovered 3 exits: *Fac x3) -7/Factory (discovered 2 exits: [*Fac] / Gar) -7/Garrison (discovered 3 exits: [Fac x3]) History --------- Turn | Location | Event 12 | -11/Junkyard | Discovered new exit (range 16) 77 | -11/Junkyard | Entered Materials 313 | -10/Materials | Build established: Mutant 628 | -10/Materials | Discovered new exit (range 3) 1235 | -10/Materials | Discovered new exit (range 10) 1302 | -10/Materials | Discovered new exit (range 8) 1313 | -10/Materials | Entered Mines 1314 | -10/Mines | Assembled infested the area 1319 | -10/Mines | Assisted by a Guerilla fighting off Assembled 1332 | -10/Mines | Met a Derelict bent on vengeance 1417 | -10/Mines | Discovered new exit (range 10) 1437 | -10/Mines | Learned 4 Materials zone layouts 1442 | -10/Mines | Found the Drone Emporium 1449 | -10/Mines | Found Prototype Device 1463 | -10/Mines | Identified Thief Drone Bay 1466 | -10/Mines | Entered Materials 1466 | -9/Materials | Evolved 2 slots: Utility x2 1467 | -9/Materials | Identified exit to Materials 1586 | -9/Materials | Repaired Lgt. Treads 1658 | -9/Materials | Repaired Lgt. Treads 1803 | -9/Materials | Destroyed 10 combat bots 1806 | -9/Materials | Discovered exit to Materials (range 7) 1885 | -9/Materials | Discovered new exit (range 16) 1924 | -9/Materials | Entered Mines 1931 | -9/Mines | Received a Rocket Launcher from a helpful Derelict 2056 | -9/Mines | Learned location of Storage (-7) 2092 | -9/Mines | Assisted by bots powering up and referring to "LRC-V3" 2314 | -9/Mines | Learned 2 Materials zone layouts 2467 | -9/Mines | Discovered exit to Materials (range 5) 2521 | -9/Mines | A Derelict revealed a hidden shortcut to a safe place 2726 | -9/Mines | Discovered exit to Materials (range 5) 2749 | -9/Mines | Deemed a non-threat by the Exiles lab entrance 2750 | -9/Mines | Discovered new exit (range 5) 2764 | -9/Mines | Entered Exiles 2764 | -9/Exiles | Accompanied by 4 allies 2794 | -9/Exiles | Led the pair of lost Derelicts to a safe place 2808 | -9/Exiles | Met 8R-AWN 2832 | -9/Exiles | Met EX-HEX 2900 | -9/Exiles | Met EX-DEC 2931 | -9/Exiles | Learned location of Zion (-7) 2985 | -9/Exiles | Discovered new exit (range 14) 3004 | -9/Exiles | Entered Mines 3004 | -8/Mines | Accompanied by 3 allies 3092 | -8/Mines | Discovered exit to Materials (range 6) 3648 | -8/Mines | Discovered exit to Materials (range 5) 3824 | -8/Mines | Entered Materials 3824 | -8/Materials | Evolved 2 slots: Utility x2 3825 | -8/Materials | Identified exit to Factory 3945 | -8/Materials | Identified exit to Garrison 3986 | -8/Materials | Entered Garrison 3986 | -8/Garrison | Discovered recently destroyed garrison 3986 | -8/Garrison | Accompanied by 3 allies 4138 | -8/Garrison | Build established: Hacker-Mutant 4280 | -8/Garrison | Discovered exit to Factory (range 37) 4280 | -8/Garrison | Discovered exit to Factory (range 58) 4280 | -8/Garrison | Discovered exit to Factory (range 44) 4362 | -8/Garrison | Garrison Relay disabled 4435 | -8/Garrison | Installed Relay Interface Framework 4462 | -8/Garrison | Entered Factory 4462 | -7/Factory | Accompanied by 3 allies 4462 | -7/Factory | Evolved 2 slots: Utility x2 4548 | -7/Factory | Sucked down chute 4548 | -7/Factory | Entered Waste 4563 | -7/Waste | EMP discharged 4564 | -7/Waste | Spotted C-40 Crusher 4564 | -7/Waste | Spotted C-40 Crusher 4572 | -7/Waste | Spotted C-40 Crusher 4575 | -7/Waste | 3 allies followed down the chute 4602 | -7/Waste | Spotted C-40 Crusher 4602 | -7/Waste | Crushed by Compactor (1 part destroyed, 1 dropped) 4646 | -7/Waste | Crushed by Compactor (1 part destroyed, 1 dropped) 4649 | -7/Waste | Spotted C-40 Crusher 4649 | -7/Waste | Spotted C-40 Crusher 4663 | -7/Waste | EMP discharged 4663 | -7/Waste | System corruption reached 10% 4700 | -7/Waste | Allies destroyed C-40 Crusher 4710 | -7/Waste | Allies destroyed C-40 Crusher 4710 | -7/Waste | Found Damper Plating 4745 | -7/Waste | Discovered new exit (range 10) 4759 | -7/Waste | Entered Factory 4772 | -7/Factory | Discovered new exit (range 10) 4925 | -7/Factory | Identified exit to Garrison 4933 | -7/Factory | Entered Garrison 4952 | -7/Garrison | Triggered checkpoint 5257 | -7/Garrison | Garrison Relay disabled 5372 | -7/Garrison | Triggered checkpoint 5400 | -7/Garrison | Discovered new exit (range 44) 5400 | -7/Garrison | Discovered new exit (range 65) 5400 | -7/Garrison | Discovered new exit (range 35) 5409 | -7/Garrison | Triggered checkpoint 5569 | -7/Garrison | Expanded RIF knowledge: Watcher Feeds 5624 | -7/Garrison | Entered Factory 5799 | -7/Factory | Discovered new exit (range 24) 6337 | -7/Factory | Allied Derelicts emerged from ambush trap array 6465 | -7/Factory | Identified exit to Garrison 6494 | -7/Factory | Garrison activated, responded to threat 6496 | -7/Factory | Entered Garrison 6496 | -7/Garrison | Accompanied by 1 ally 6586 | -7/Garrison | Discovered new exit (range 39) 6586 | -7/Garrison | Discovered new exit (range 57) 6586 | -7/Garrison | Discovered new exit (range 56) 6612 | -7/Garrison | Triggered checkpoint 6705 | -7/Garrison | Core integrity fell below 50% 6720 | -7/Garrison | Core integrity fell below 20% 6734 | -7/Garrison | Destroyed by Y-54 Guardian with Gatling Laser Last Messages --------------- 06705_ Switching to secondary target: Y-54 Guardian. 06706_ Antimatter Reactor destroyed. 06713_ System corrupted: Component data lost. 06715_ Imp. Heavy Treads destroyed. 06716_ Slug penetrates Reinforced Barrier. 06718_ Imp. Cooling System destroyed. 06719_ Penetrated by Slug. 06721_ Activated siege mode. 06721_ Particle Gun melted. 06721_ G-47 Trooper destroyed. 06721_ Switching to secondary target: Y-54 Guardian. 06722_ Penetrated by Slug. 06724_ Cld. Pulse Rifle destroyed. 06728_ Imp. Heat Sink destroyed. 06728_ Slug penetrates Wall. 06729_ TTDUB0BFHA=XRAJMRLMTNBGO/JNYCNNKFW5FIYH6 06729_ Ended siege mode. 06729_ Acquired 4 matter. 06732_ Critical hit (Burn: +37). 06733_ Imp. Heavy Treads destroyed. Map ----- +----------------------------------------------------+ | ?# < ##########++#????#!! !!#????????????????# ## | | ?# ######! !#????????????????# #? | | ?# + +! !#????????????????# #? | | ############### ######! !#????????????????# #? | | #?????????##### #????### ###????????????????# #? | | #????????## ## #??????# #??????????????????# #? | | #????????# #??????# #??????????????????# #? | | #????????# # #??????# #??????????????????# ## | | #????????## ## #??????# #??????????????????# ## | | ############### ########+##?????????????????# ## | | #??????############ ## | | ##"""########## #??##### | | ?# #????????# ######## #??# + | | ?##+##????????# ######## ;??# ### ###+##### ## | | ??# #?????????# ## # ;??# #?# #?# #???# #? | | ??# ########### ## #####% #??# #?# ### #???# #? | | ??# + + #???# ;??# #?# + ##### #? | | ??# ###########^^## #???# ;###+### ### + #? | | ??# #?????????#^^## #???# ## ## ### ##### #? | | ?##+##????????# ## #??## ## ""## ## #???#^^#? | | ?# #????????# ##+#### ##+##### #? | | ##"""########## #? | | #? | | ######################## Y## ## ########+##? | | ?????????????????????### % ## ## ###????# #?? | | ?????????????????????#=% @ Y ###### #?? | | ?????????????????????#% Y g + #?? | | ?????????????????????# %[ ! g ########?? | | ?????????????????????# = * % #????????? | | ?????????????????????###!![## ## ###????????? | | ?????????????###########[=%;# ## #??????????? | | ?????????????# !g*[ ############ | | ?????????????# =%=%= + | | ?????????????# ###+#### ### ### #### | | ?????????????# #?# #??## ## ## #?# #?# #??? | | ?????????????# ### #???#^^## ## #?# #?# #??? | | ?????????????# T## #???#^^######## #?# #?# #??? | | ?????????????# ### ##### #??????# #?# #?# #??? | | ?????????????# ## + #??????# #?# ###+##?? | | ?????????????# ## ###### #??????# #?# ## #?? | | ????########## ##+###### #??????# ###+##"""### | | ????# #??????# | | ????# #??????# | | ????# ####### ###+######+##??????# | | ????# #?????# #?# #????# #???????# #######+++++## | | ????# #?????# #?# #????# #???????# #?????# #? | | ????# #?????# #?# #????# #???????# #???### ## | | ????# #?????# ###+#????# #???????# #???#"" "" | | ????# #?????# #????# #???????# #???#" " | | ????# #?????##### #????# #???????# #???#" " | +----------------------------------------------------+ Best States ------------- Heat Dissipation 79 Energy Generation 21 Energy Capacity 325 Matter Stores 300 Matter Capacity 300 Sight Range 16 Terrain Scan Density 10 Armor Coverage 3200 Resistance: EM 90 Utility Shielding 66 Evasion (%) 40 Recoil Reduction 2 Offensive Hacking 20 Defensive Hacking 10 Relay Coupler Types 1 Relay Coupler Value 26 Authchip Count 2 Item Schematics ----------------- None Robot Schematics ------------------ M-28 Smith | -8/Materials | Hacked Fabricated ------------ Nothing Alien Tech Used ----------------- None Achievements -------------- None Challenges ------------ None Game ------ Seed DerelictSlugInterrupter Manual? 0 Play Time 00:49:56 Cumulative 484.1 hours Start 2023.05.08 @ 08:47:56 End 2023.05.08 @ 09:37:13 Sessions 1 Manual Loads 0 Difficulty Rogue Special Mode None Game No. 521 Rogue 512 Adventurer 8 Explorer 1 Win Type - Total 9 Types 5/1/3/0/0/0/0/0/0 Lore% 82 Gallery% 91 Achievement% 71 Wizard Run 0 Options --------- ASCII 0 Keyboard 0 Movement Numpad Keybinds 1 Fullscreen 2 Font 18/Terminus Map View 76x50 Tactical HUD 1 Map Filters NONE Filters NONE Steam 1 RUN: 04ce03cf-3de0-4f6b-a220-5245f3f515cb